Cogmind - Beta 14 @@@ ROGUE MODE // 2024.09.10 @ 11:19:30 Player: AnotherZach Result: Destroyed by KN-7UR with KN-7UR's Autopenetrator Performance ------------- Evolutions (2) 1000 Regions Visited (7) 1400 Robots Destroyed (96) 480 Value Destroyed (2323) 2323 Prototype IDs (10) 200 Alien Tech Used (0) 0 Bonus (-236) -236 TOTAL SCORE: 5167 Bonus ------- High Alert Combat Kills 54 Friendly Fire -290 Cogmind --------- Core Integrity 0/550 Matter 108/300 Energy 36/100 System Corruption 0% Temperature Cool (82) Movement Core (700) Ox13 Location -8/Recycling Parts ------- > --- POWER (1) -------- (None) > --- PROPULSION (4) --- (None) > --- UTILITY (4) ------ Coolant Injector High-capacity Storage Unit Hacking Suite > --- WEAPON (2) ------- (None) > --- INVENTORY (20) --- Large Storage Unit High-capacity Matter Pod (200) Faulty Experimental Sensor Array Improved Medium Armor Plating Hacking Suite Hacking Suite Hacking Suite Improved Lightning Gun Cooled Particle Cannon Cooled Particle Cannon Advanced EMP Blaster Peak State ------------ > --- POWER ------------ Light Nuclear Core > --- PROPULSION ------- Light Treads Light Treads Light Treads Light Treads > --- UTILITY ---------- Improved Cooling System High-capacity Storage Unit Improved Medium Armor Plating Improved Medium Armor Plating > --- WEAPON ----------- Advanced Beam Rifle Cooled Particle Cannon > --- INVENTORY -------- Ion Engine Aluminum Leg Aluminum Leg Aluminum Leg Aluminum Leg Coolant Injector Coolant Injector Coolant Injector Large Storage Unit High-capacity Matter Pod Experimental Sensor Array Seismic Detector Transport Network Coupler ECM Suite Improved Medium Armor Plating Improved Medium Armor Plating Cooled Particle Cannon Cooled Particle Cannon Advanced EMP Blaster Rocket Launcher [Rating: 34] Favorites ----------- Power Ion Engine Engine Ion Engine Power Core Light Nuclear Core Propulsion Light Treads Treads Light Treads Leg Aluminum Leg Wheel Wheel Utility High-capacity Storage Unit Device Coolant Injector Storage High-capacity Storage Unit Processor Visual Processing Unit Hackware Hacking Suite Protection Improved Medium Armor Plating Weapon Enhanced Autogun Energy Gun Improved EM Shotgun Energy Cannon Cooled Particle Cannon Ballistic Gun Enhanced Autogun Ballistic Cannon Light Cannon Launcher Rocket Launcher Special Melee Weapon Datajack Build | -11 -10 -10 -9 -9 -8 -8 -8 ------- Run | Yrd Mat Min Mat Min Mat Sto Rec Slots Evolved 4 | . . . 2 . 2 . . Power . | . . . . . . . . Propulsion 2 | . . . 1 . 1 . . Utility 2 | . . . 1 . 1 . . Weapon . | . . . . . . . . Parts Attached 110 | 7 10 2 23 . 29 25 14 Power 10 | 1 2 . 2 . 1 3 1 Engine 8 | 1 2 . 2 . . 2 1 Core 2 | . . . . . 1 1 . Reactor . | . . . . . . . . Propulsion 26 | 2 2 . 6 . 6 8 2 Treads 20 | . 2 . 4 . 6 8 . Leg 4 | . . . 2 . . . 2 Wheel 2 | 2 . . . . . . . Hover . | . . . . . . . . Flight . | . . . . . . . . Utility 34 | 2 3 1 6 . 8 7 7 Device 15 | 1 . . 3 . 5 4 2 Storage 4 | 1 2 1 . . . . . Processor 2 | . 1 . . . . 1 . Hackware 3 | . . . . . . . 3 Protection 10 | . . . 3 . 3 2 2 Artifact . | . . . . . . . . Weapon 40 | 2 3 1 9 . 14 7 4 Energy Gun 8 | . . . 2 . 3 3 . Energy Cannon 2 | . . . . . 1 . 1 Ballistic Gun 16 | 2 1 1 3 . 4 4 1 Ballistic Cannon 5 | . 2 . 2 . . . 1 Launcher 8 | . . . 1 . 6 . 1 Special Weapon . | . . . . . . . . Impact Weapon . | . . . . . . . . Slashing Weapon . | . . . . . . . . Piercing Weapon . | . . . . . . . . Special Melee Weapon 1 | . . . 1 . . . . Unidentified Prototypes 10 | . . . 2 . 4 4 . Parts Lost 26 | . 1 . 5 . 6 . 14 Power 3 | . 1 . . . . . 2 Propulsion 11 | . . . 2 . 3 . 6 Utility 4 | . . . 1 . 2 . 1 Weapon 8 | . . . 2 . 1 . 5 Highest Loss Streak 14 | . 1 . 3 . 2 . 14 To Critical Strikes . | . . . . . . . . Average Slot Usage (%) 98 | . 98 100 97 100 97 99 96 Engine 8 | . 12 14 11 11 6 3 8 Core 1 | . . . . . 2 5 . Treads 32 | . 23 28 31 33 34 35 33 Device 7 | . 11 . 6 . 16 7 2 Storage 10 | . 14 14 11 11 9 9 9 Processor 3 | . 2 14 9 . . 3 . Hackware 4 | . . . . . . . 22 Protection 7 | . . . 4 22 9 16 1 Energy Cannon 1 | . . . . . 8 2 . Ballistic Gun 11 | . 4 4 11 22 3 13 17 Ballistic Cannon 6 | . 23 24 8 . . . . Peak Build Rating 34 | 7 9 14 17 16 34 34 33 Average Rating 22 | 5 7 11 15 16 24 32 30 On Entrance 16 | . 7 9 14 16 16 33 33 Naked Turns . | . . . . . . . . Heaviest Build 71 | 14 30 50 57 57 71 71 68 Greatest Support 80 | 20 40 40 60 60 80 80 80 Greatest Overweight (x) 13 | . . 1 1 . . 1 13 Average Overweight (x) . | . . . . . . . . Largest Inventory Capacity 20 | 8 15 20 20 20 20 20 20 Average Capacity 18 | 7 11 19 20 20 20 20 20 Most Carried 20 | 8 15 20 20 20 20 20 20 Average Carried 17 | 5 10 18 19 19 19 19 19 Final Capacity 20 | 8 15 20 20 20 20 20 20 Final Carried 20 | 8 15 20 20 20 20 20 11 Class Distribution -------------------- 44% | Mutant 39% | Scavenger-Mutant 15% | Hacker-Mutant Dominant Class ---------------- Mutant | -10/Materials Mutant | -10/Mines Scavenger-Mutant | -9/Materials Mutant | -9/Mines Scavenger-Mutant | -8/Materials Scavenger-Mutant | -8/Storage Hacker-Mutant | -8/Recycling Resources | -11 -10 -10 -9 -9 -8 -8 -8 ----------- Run | Yrd Mat Min Mat Min Mat Sto Rec Matter Collected 2990 | 326 438 183 498 105 516 760 164 Remotely 280 | . . . 280 . . . . Salvage Created 3410 | 135 480 138 892 195 757 572 241 Parts 193 | 7 39 10 38 6 37 42 14 Haulers Intercepted 9 | . 1 . 3 . 3 2 . Recyclers Shooed 12 | . 1 . 6 . 1 2 2 Parts Field Recycled . | . . . . . . . . Retrieved Matter . | . . . . . . . . Parts Self-Destructed . | . . . . . . . . Prevented . | . . . . . . . . Kills | -11 -10 -10 -9 -9 -8 -8 -8 ------- Run | Yrd Mat Min Mat Min Mat Sto Rec Combat Hostiles Destroyed 56 | . 14 . 13 2 15 8 4 Guns 22 | . 2 . 7 2 2 5 4 Cannons 25 | . 12 . 6 . 5 2 . AOE 9 | . . . . . 8 1 . Classes Destroyed 14 | 2 6 1 2 1 . 1 1 Worker 6 | . 1 . . 1 . 4 . Builder 4 | . . 1 1 . 1 . 1 Tunneler 2 | 2 . . . . . . . Hauler 9 | . 1 . 3 . 3 2 . Recycler 12 | 1 1 2 4 1 1 2 . Mechanic 2 | . 1 . . . 1 . . Operator 2 | . . . 1 . . 1 . Drone 1 | . . . . . . 1 . Watcher 3 | . 1 . . . 2 . . Swarmer 10 | . 5 . 1 . . 4 . Grunt 33 | . 9 . 10 1 13 . . Brawler 2 | . . . . 1 1 . . Sentry 10 | . . . 2 . 1 4 3 Scrapper 1 | . . . . . . . 1 Best Kill Streak 12 | 2 5 2 12 3 5 4 1 Combat Bots Only 10 | . 4 . 10 2 3 4 1 Max Kills in Single Turn 3 | 1 1 1 2 2 3 3 1 Gunslinging 1 | . . . . 1 . . . Exploded 2 | . . . . . 2 1 . Melee . | . . . . . . . . Uniques/NPCs Destroyed . | . . . . . . . . Combat | -11 -10 -10 -9 -9 -8 -8 -8 -------- Run | Yrd Mat Min Mat Min Mat Sto Rec Hostile Shots Fired 533 | . 76 . 95 3 85 30 244 Missed 104 | . 21 . 31 1 21 8 22 Damage Taken 5570 | . 580 . 755 41 1075 372 2747 Core 809 | . 98 . 119 33 132 . 427 Absorbed by Shields . | . . . . . . . . Redirected to Shielding 34 | . . . . . . 34 . Regen/Repaired (Parts) 189 | . . . . . . 189 . Core Remaining (%) 74 | 100 . 60 . 62 . . . Volleys Fired 261 | 14 53 4 58 4 50 40 38 Largest 2 | 2 2 2 2 2 2 2 2 Hottest 123 | 40 70 70 91 46 123 75 115 Shots Fired 507 | 28 106 8 115 8 93 81 68 Gun 275 | 28 20 . 70 8 22 75 52 Cannon 208 | . 86 8 45 . 49 6 14 Launcher 24 | . . . . . 22 . 2 Special . | . . . . . . . . Kinetic 406 | 28 106 8 105 8 22 69 60 Thermal 71 | . . . 10 . 49 6 6 Explosive 24 | . . . . . 22 . 2 Electromagnetic 6 | . . . . . . 6 . Robot Hit Streak 17 | 9 13 4 17 9 10 7 13 Robot Miss Streak 7 | 3 7 2 2 1 6 4 3 Penetration Max . | . . . . . . . . Secondary Targets 1 | . . . . 1 . . . Max Gunslinging Chain 1 | . . . . 1 . . . Shots Hit Robots 310 | 20 54 4 80 5 51 43 53 Core Hits 149 | 4 23 3 28 5 48 25 13 Critical Kills 1 | . . . . . . 1 . Critical Parts Destroyed . | . . . . . . . . Critical Strikes 9 | . 1 . 6 . . 1 1 Burn 4 | . . . 4 . . . . Destroy 1 | . . . . . . 1 . Blast 4 | . 1 . 2 . . . 1 Melee Attacks . | . . . . . . . . Impact . | . . . . . . . . Slashing . | . . . . . . . . Piercing . | . . . . . . . . Sneak Attacks . | . . . . . . . . Combat Hostiles . | . . . . . . . . Follow-up Attacks . | . . . . . . . . Damage Inflicted 7684 | 197 904 72 1524 113 2817 882 1175 Guns 2893 | 197 130 . 988 82 203 657 636 Cannons 2894 | . 774 72 536 . 1028 106 378 Explosions 1772 | . . . . . 1584 67 121 Melee . | . . . . . . . . Ramming 125 | . . . . 31 2 52 40 Kinetic 4271 | 197 904 72 1379 82 203 571 863 Thermal 1497 | . . . 145 . 1028 173 151 Explosive 1705 | . . . . . 1584 . 121 Electromagnetic 86 | . . . . . . 86 . Impact . | . . . . . . . . Slashing . | . . . . . . . . Piercing . | . . . . . . . . Highest Corruption 1 | . . . . . . 1 . Average Corruption 1 | . . . . . . 1 . Corruption Purged 1 | . . . . . . 1 . Corruption Blocked . | . . . . . . . . Effects 3 | . . . . . . 3 . Message Errors 2 | . . . . . . 2 . Misfires 1 | . . . . . . 1 . Overload Shots 9 | . . . . . 7 . 2 Effects 1 | . . . . . . . 1 Energy Bleed 1 | . . . . . . . 1 Overflow Damage 119 | . 31 . 8 . 41 . 39 Projectiles 76 | . 31 . 8 . 24 . 13 Explosions 43 | . . . . . 17 . 26 Melee . | . . . . . . . . Knockbacks 32 | . 14 1 12 . . . 5 Impact . | . . . . . . . . Kinetic 27 | . 12 1 9 . . . 5 Secondary 5 | . 2 . 3 . . . . Self-Inflicted Damage 187 | . . . . . 71 22 94 Shots 6 | . . . . . 3 1 2 Rammed 15 | . . . . 2 1 5 7 Targets Rammed 18 | . . . . 2 1 8 7 Kicked . | . . . . . . . . Crushed 3 | . . . . . . 3 . Highest Temperature 268 | . 141 18 43 . 190 27 268 Average Temperature 49 | . 36 8 13 . 56 7 118 Received Heat Transfer 2629 | . 216 . 339 . 594 72 1408 Siege Activations . | . . . . . . . . Robots Corrupted . | . . . . . . . . Combat Hostiles . | . . . . . . . . Parts Fried 1 | . . . . . . 1 . Impact Corruptions . | . . . . . . . . Robots Melted . | . . . . . . . . Combat Hostiles . | . . . . . . . . Parts Melted 6 | . . . 4 . 2 . . Heat Transferred 2437 | . . . 666 . 1262 298 211 Parts Sabotaged . | . . . . . . . . Parts Stolen . | . . . . . . . . Parts Stripped . | . . . . . . . . Power Chain Reactions 1 | . . . . . . 1 . Alert | -11 -10 -10 -9 -9 -8 -8 -8 ------- Run | Yrd Mat Min Mat Min Mat Sto Rec Peak Influence 468 | 15 328 142 465 214 468 212 64 Initial 144 | . 9 127 55 144 83 122 44 Average 135 | 5 114 138 226 178 271 108 23 Maximum Alert Level 2 | . 1 . 2 1 2 1 . Low Security (%) 74 | 100 77 100 42 60 31 88 100 Level 1 22 | . 22 . 49 39 55 11 . Level 2 2 | . . . 8 . 13 . . Level 3 . | . . . . . . . . Level 4 . | . . . . . . . . Level 5 . | . . . . . . . . High Security . | . . . . . . . . Max Security . | . . . . . . . . Squads Dispatched 9 | . 3 . 3 . 2 1 . Investigation 6 | . 3 . 2 . 1 . . Extermination . | . . . . . . . . Reinforcement 3 | . . . 1 . 1 1 . Assault . | . . . . . . . . Garrison . | . . . . . . . . Intercept . | . . . . . . . . Searches Triggered . | . . . . . . . . Construction Impeded 1 | . . . 1 . . . . Haulers Reinforced . | . . . . . . . . Active Scanning Responses . | . . . . . . . . Cargo Convoy Interrupts . | . . . . . . . . Stealth | -11 -10 -10 -9 -9 -8 -8 -8 --------- Run | Yrd Mat Min Mat Min Mat Sto Rec Distress Signals 4 | . . . 1 . 2 1 . Communications Jammed . | . . . . . . . . Distress Signals . | . . . . . . . . Times Spotted 98 | . 19 . 20 6 24 22 7 Peak Tracking Total 8 | . 4 . 8 3 5 4 5 Tactical Retreats 5 | . 1 . 3 . 1 . . Traps | -11 -10 -10 -9 -9 -8 -8 -8 ------- Run | Yrd Mat Min Mat Min Mat Sto Rec Traps Triggered 3 | . 1 . . . 1 1 . Indirectly . | . . . . . . . . Trap Hack Attempts 4 | . . . 4 . . . . Triggered . | . . . . . . . . Disarmed 4 | . . . 1 . 3 . . Reprogrammed . | . . . . . . . . Reused . | . . . . . . . . Traps Extracted . | . . . . . . . . Installed . | . . . . . . . . Triggered 1 | . . . . 1 . . . Machines | -11 -10 -10 -9 -9 -8 -8 -8 ---------- Run | Yrd Mat Min Mat Min Mat Sto Rec Machines Disabled 7 | . 2 . . . 2 3 . Max in Single Turn 1 | . 1 . . . 1 1 . Garrison Access 1 | . . . . . . 1 . Machines Repaired . | . . . . . . . . Machines Dismantled . | . . . . . . . . Machines Sabotaged . | . . . . . . . . Overloaded Fab Kills . | . . . . . . . . Hacking | -11 -10 -10 -9 -9 -8 -8 -8 --------- Run | Yrd Mat Min Mat Min Mat Sto Rec Machines Accessed 34 | . 5 . 5 . 3 9 12 Terminals 21 | . 3 . 3 . 3 6 6 Fabricators . | . . . . . . . . Repair Stations 1 | . . . . . . 1 . Recycling Units 10 | . 2 . 1 . . 1 6 Scanalyzers 1 | . . . 1 . . . . Garrison Access 1 | . . . . . . 1 . Total Hacks 110 | . 17 . 17 . 6 26 44 Successful 70 | . 7 . 12 . 3 14 34 Failed 40 | . 10 . 5 . 3 12 10 Catastrophic 2 | . 1 . . . . . 1 Database Lockouts . | . . . . . . . . Manual 78 | . 15 . 12 . 2 11 38 Terminals 68 | . 11 . 12 . 6 17 22 Fabricators . | . . . . . . . . Repair Stations 5 | . . . . . . 5 . Recycling Units 32 | . 6 . 2 . . 2 22 Scanalyzers 3 | . . . 3 . . . . Garrison Access 2 | . . . . . . 2 . Terminal Hacks 19 | . 1 . 1 . 3 3 11 Part Schematic 3 | . . . . . . . 3 Robot Schematic 3 | . 1 . . . . . 2 Robot Analysis 3 | . . . . . . . 3 Open Door 3 | . . . . . . 3 . Branch Access Points 1 | . . . 1 . . . . Alert Level 1 | . . . . . 1 . . Unreport Threat 4 | . . . . . 1 . 3 Disarm Traps 1 | . . . . . 1 . . Fabricator Hacks . | . . . . . . . . Repair Station Hacks 4 | . . . . . . 4 . Scan Component 2 | . . . . . . 2 . Repair 2 | . . . . . . 2 . Recycling Unit Hacks 6 | . 1 . 1 . . . 4 Retrieve Matter 2 | . . . . . . . 2 Retrieve Components 4 | . 1 . 1 . . . 2 Scanalyzer 2 | . . . 2 . . . . Insert Component 1 | . . . 1 . . . . Analyze 1 | . . . 1 . . . . Garrison Access Hacks 1 | . . . . . . 1 . Seal Access 1 | . . . . . . 1 . Unauthorized Hacks 38 | . 5 . 8 . . 6 19 Terminals 20 | . 2 . 6 . . 5 7 Track 2 | . . . 1 . . 1 . Assimilate 2 | . . . 1 . . 1 . Botnet 6 | . 1 . 2 . . 1 2 Operators 3 | . 1 . 1 . . 1 . Skim 7 | . . . 1 . . 1 5 Fabricators . | . . . . . . . . Repair Stations . | . . . . . . . . Recycling Units 17 | . 3 . 1 . . 1 12 Reject 8 | . 1 . . . . 1 6 Recyclers 1 | . . . . . . . 1 Mask 4 | . . . . . . . 4 Tunnel 4 | . 2 . 1 . . . 1 Scanalyzers 1 | . . . 1 . . . . Extract 1 | . . . 1 . . . . Garrison Access . | . . . . . . . . Data Cores Recovered 1 | . . . 1 . . . . Used 1 | . . . 1 . . . . Hacking Detections 29 | . 4 . 5 . 2 6 12 Full Trace Events 4 | . 2 . . . . . 2 Feedback Events . | . . . . . . . . Feedback Blocked . | . . . . . . . . Robot Schematics Acquired 3 | . 1 . . . . . 2 Robots Built . | . . . . . . . . Authchips . | . . . . . . . . Time . | . . . . . . . . Total Robot Build Rating . | . . . . . . . . Part Schematics Acquired 5 | . . . 2 . . . 3 Parts Built . | . . . . . . . . Authchips . | . . . . . . . . Time . | . . . . . . . . Total Part Build Rating . | . . . . . . . . Parts Repaired 2 | . . . . . . 2 . Time 52 | . . . . . . 52 . Parts Recycled . | . . . . . . . . Recycled Matter . | . . . . . . . . Retrieved Matter . | . . . . . . . . Retrieved Components 15 | . 1 . 9 . . . 5 Parts Scanalyzed 1 | . . . 1 . . . . Part Schematics Acquired 1 | . . . 1 . . . . Parts Damaged . | . . . . . . . . Bothacking | -11 -10 -10 -9 -9 -8 -8 -8 ------------ Run | Yrd Mat Min Mat Min Mat Sto Rec Used RIF Installer . | . . . . . . . . Robots Hacked . | . . . . . . . . Non-combat . | . . . . . . . . Combat . | . . . . . . . . Robot Hacks Applied . | . . . . . . . . Relay Couplers Released . | . . . . . . . . Fabnet Peak Effective % . | . . . . . . . . Robots Rewired . | . . . . . . . . Allies Hacked . | . . . . . . . . Hacks Repelled . | . . . . . . . . Allies | -11 -10 -10 -9 -9 -8 -8 -8 -------- Run | Yrd Mat Min Mat Min Mat Sto Rec Total Allies 1 | . . . 1 . . . . Largest Group 1 | . . . 1 . . . . Highest-Rated Group 10 | . . . 10 . . . . Highest-Rated Ally 10 | . . . 10 . . . . Total Orders 4 | . . . . . . 4 . EXPLORE 4 | . . . . . . 4 . Ally Attacks . | . . . . . . . . Total Damage . | . . . . . . . . Kills . | . . . . . . . . Allies Corrupted . | . . . . . . . . Allies Melted 1 | . . . . . . . 1 Intel | -11 -10 -10 -9 -9 -8 -8 -8 ------- Run | Yrd Mat Min Mat Min Mat Sto Rec Robot Analysis Total 3 | . . . . . . . 3 Derelict Logs Recovered 1 | . . 1 . . . . . Drone Launches 10 | . . . . . . 10 . Drone Recoveries 2 | . . . . . . 2 . Exploration | -11 -10 -10 -9 -9 -8 -8 -8 ------------- Run | Yrd Mat Min Mat Min Mat Sto Rec Turns Passed 4921 | 109 722 354 595 335 694 1172 940 Spaces Moved 2280 | 66 381 144 215 199 284 499 492 Core 5 | 4 . . . . . . 1 Treads 2113 | . 282 144 215 199 284 499 490 Legs 1 | . . . . . . . 1 Wheels 161 | 62 99 . . . . . . Hover . | . . . . . . . . Flight . | . . . . . . . . Fastest Speed 50 | 50 80 160 160 160 160 160 160 Average Speed 159 | 78 139 231 165 160 160 160 161 Slowest Speed 700 | 80 160 240 240 160 160 240 700 Overloaded Moves . | . . . . . . . . Propulsion Burnouts . | . . . . . . . . Robots Hopped . | . . . . . . . . Cave-ins Triggered . | . . . . . . . . Exploration Rate (%) 45 | 5 65 45 26 39 29 75 82 Regions Visited 7 Branch Regions 4 Pre-discovered Areas 6 | . 2 . 1 . . . 3 Known Exits Taken 2 | . . . 1 . 1 . . Unknown Exits Taken 5 | 1 1 1 . 1 . 1 . Scrap Searched 1 | . . 1 . . . . . Spaces Dug . | . . . . . . . . Terrain Destroyed 189 | . . . 5 . 157 5 22 Melee . | . . . . . . . . Projectile 24 | . . . 5 . 14 1 4 AOE 165 | . . . . . 143 4 18 Terrain Rammed . | . . . . . . . . Walls Destroyed . | . . . . . . . . Machines Disabled . | . . . . . . . . Actions | -11 -10 -10 -9 -9 -8 -8 -8 --------- Run | Yrd Mat Min Mat Min Mat Sto Rec Total 3111 | 94 474 158 343 208 430 816 588 Wait 282 | . . . 11 . 33 211 27 Move 2273 | 65 380 143 214 198 283 498 492 Hop . | . . . . . . . . Pick Up 68 | 8 16 6 14 2 13 5 4 Fast Attach 50 | 7 4 1 6 . 14 16 2 Attach 26 | . 3 . 10 . 5 2 6 Detach 3 | . 1 . 2 . . . . Swap 34 | . 3 1 7 . 10 7 6 Drop 88 | . 14 3 17 2 21 25 6 Fire 261 | 14 53 4 58 4 50 40 38 Melee . | . . . . . . . . Ram . | . . . . . . . . Kick . | . . . . . . . . Crush 18 | . . . . 2 1 8 7 Escape Stasis . | . . . . . . . . Rewire . | . . . . . . . . Trap 4 | . . . 4 . . . . Miscellaneous 4 | . . . . . . 4 . Route ------- -11/Scrapyard -10/Materials (discovered 3 exits: *Mat / [*Min x2]) -10/Mines -9/Materials (discovered 2 exits: *Min x2) -9/Mines (discovered 2 exits: *Mat / [*Zio]) -8/Materials -8/Storage (discovered 2 exits: [*Fac] / *Rec) -8/Recycling (discovered 1 exit: [*Fac]) History --------- Turn | Location | Event 22 | -11/Scrapyard | Discovered new exit (range 16) 110 | -11/Scrapyard | Entered Materials 310 | -10/Materials | Build established: Mutant 329 | -10/Materials | Discovered new exit (range 15) 490 | -10/Materials | Discovered new exit (range 14) 810 | -10/Materials | Derelicts attacked the area 817 | -10/Materials | Discovered new exit (range 5) 832 | -10/Materials | Entered Mines 929 | -10/Mines | Found a damaged Exp. Sensor Array with a note attached 934 | -10/Mines | Found Prototype Device 1078 | -10/Mines | A weapon hastily lodged in a ceiling crevice suddenly fell to the ground 1169 | -10/Mines | Discovered new exit (range 6) 1186 | -10/Mines | Entered Materials 1186 | -9/Materials | Evolved 2 slots: Propulsion x1, Utility x1 1359 | -9/Materials | Identified exit to Mines 1568 | -9/Materials | Lost 3 parts (1n1u1w) 1569 | -9/Materials | Destroyed 10 combat bots 1781 | -9/Materials | Entered Mines 1853 | -9/Mines | A Derelict revealed a hidden shortcut to a safe place 2094 | -9/Mines | Discovered new exit (range 12) 2116 | -9/Mines | Entered Materials 2116 | -8/Materials | Evolved 2 slots: Propulsion x1, Utility x1 2117 | -8/Materials | Identified exit to Storage 2406 | -8/Materials | Build established: Scavenger-Mutant 2810 | -8/Materials | Entered Storage 2936 | -8/Storage | Lost 6 allies 2962 | -8/Storage | Discovered new exit (range 72) 3030 | -8/Storage | Build established: Mutant 3110 | -8/Storage | Met 01-MTF 3210 | -8/Storage | Repaired Lgt. Treads 3238 | -8/Storage | Repaired Lgt. Treads 3450 | -8/Storage | Discovered new exit (range 9) 3540 | -8/Storage | Build established: Scavenger-Mutant 3982 | -8/Storage | Entered Recycling 3982 | -8/Recycling | Accompanied by 1 ally (01-MTF) 4354 | -8/Recycling | Build established: Hacker-Mutant 4570 | -8/Recycling | Discovered new exit (range 16) 4611 | -8/Recycling | Learned Storage security intel 4674 | -8/Recycling | Learned Storage trap positions 4728 | -8/Recycling | Learned location of 1 exit from Extension 4773 | -8/Recycling | Learned Storage non-interactive machine intel 4814 | -8/Recycling | Scanned before Scraplab entrance 4828 | -8/Recycling | Learned location of Zion (-7) 4829 | -8/Recycling | Angered Scraplab inhabitants 4875 | -8/Recycling | Core integrity fell below 50% 4905 | -8/Recycling | Core integrity fell below 20% 4922 | -8/Recycling | Destroyed by KN-7UR with KN-7UR's Autopenetrator Last Messages --------------- 04916_ Thermabolt penetrates Reinforced Barrier. 04916_ U-05 Engineer destroyed. 04918_ Penetrated by Thermabolt. 04918_ Thermabolt penetrates Reinforced Barrier. 04918_ Penetrated by Thermabolt. 04918_ Thermabolt penetrates Reinforced Barrier. 04918_ Penetrated by Thermabolt. 04918_ Thermabolt penetrates Reinforced Barrier. 04918_ Penetrated by Thermabolt. 04919_ Rocket Launcher destroyed. 04919_ Destroyed Rocket Launcher. 04919_ Enh. Autogun destroyed. 04919_ Destroyed Enh. Autogun. 04920_ Penetrated by Thermabolt. 04920_ Thermabolt penetrates Reinforced Barrier. 04920_ Penetrated by Thermabolt. 04920_ Thermabolt penetrates Reinforced Barrier. 04920_ Penetrated by Thermabolt. 04920_ Thermabolt penetrates Reinforced Barrier. Map ----- +----------------------------------------------------+ | | | | | | | | | | | | | | | | | | | | | | | | | | | | | | | | | | | | | | | | | ???????????????????####??########????????????????? | | ???????????????????# ??"""""""#????????????????? | | ??????????????????## # " " ## #?????????????? | | ?????????????????##" # !!% = #?????????????? | | ?????????????????#%!= h %! ! !%! #?????????????? | | ?????????????????#=% #@= * "#?????????????? | | ?????????????????##% # ""??????????????? | | ??????????????????#* ?#"& "& X ""??????????????? | | ??????????????????#=###?#" """""" #?????????????? | | ???????????????####%################?????????????? | | ???????????????# !! #?????????????????????????? | | ???????????????# #?????????????????????????? | | ???????????????# #?????????????????????????? | | ???????????????# #?????????????????????????? | | ???????????????####"####?????????????????????????? | | ??????????????????# #????????????????????????????? | | ????????########### #????????????????????????????? | | ????????# ## ##???????????????????????????? | | ????????# # #???????????????????????????? | | ????????# + #???????????????????????????? | | #######?# * ![ # #???????????????????????????? | | #?# ##"##???????????????????????????? | | #?# ! [#?#?????????????????????????????? | | """ #?# !#?##################????????????? | | """ #?# !#?# #????????????? | | """ #?# =] #?# """"??????????????? | | #?########/#?# ""T"" """"??????????????? | | #????????# #?# """"" """" #????????????? | | #????????# #?# #????????????? | | #+############## #########+##########????????????? | +----------------------------------------------------+ Best States ------------- Heat Dissipation 58 Coolant Potential 65 Energy Generation 14 Energy Capacity 280 Matter Stores 300 Matter Capacity 300 Sight Range 18 Robot Scan Range 15 Terrain Scan Density 10 Armor Coverage 450 Weapon Shielding 66 Evasion (%) 44 Recoil Reduction 4 Kinecelleration 30 Offensive Hacking 30 Item Schematics ----------------- Seismic Detector | -9/Materials | Scanalyzed Particle Cannon | -9/Materials | Extracted Imp. Hacking Suite | -8/Recycling | Hacked Imp. Sensor Array | -8/Recycling | Hacked Arm. Treads | -8/Recycling | Hacked Robot Schematics ------------------ M-13 Machinist | -10/Materials | Hacked M-28 Smith | -8/Recycling | Hacked H-55 Commando | -8/Recycling | Hacked Fabricated ------------ Nothing Alien Tech Used ----------------- None Achievements -------------- None Challenges ------------ None Game ------ Seed GreatSpacefoldThruster Manual? 0 Play Time 00:49:48 Cumulative 703.3 hours Start 2024.09.10 @ 10:29:44 End 2024.09.10 @ 11:19:30 Sessions 1 Manual Loads 0 Difficulty Rogue Special Mode None Game No. 149 Rogue 11 Adventurer 138 Explorer 0 Win Type - Total 11 Types 7/0/1/2/0/0/0/0/1 Lore% 78 Gallery% 84 Achievement% 73 Wizard Run 0 Options --------- Layout 2 ASCII 0 Keyboard 0 Movement Mouse Keybinds 0 Fullscreen 1 Font 24/Smallcaps Map View 50x49 Zoom Use 72% Tactical HUD 1 Map Filters NONE Filters NONE Steam 1 RUN: 72e3daaf-fff5-4d4f-a8d9-920596a59e61